[Event "NOR-ch Various 2019"]
[Site "Larvik"]
[Date "2019.07.09"]
[Round "4.20"]
[White "Akali, Mark"]
[Black "Oldernes, Lars-Arne"]
[Result "*"]
[ECO "D00"]
[WhiteElo "1730"]
[BlackElo "1684"]
[Annotator "NA"]
[PlyCount "23"]
[EventDate "2019.07.06"]
[EventType "swiss"]
[EventCountry "NOR"]
[SourceTitle "playchess.com"]
[Source "ChessBase"]
[SourceQuality "1"]
[TimeControl "40/5400+30:1800+30"]

1. d4 {[%emt 0:00:00]} d5 {[%emt 0:00:00]} 2. Bf4 {[%emt 0:00:00]} Nf6 {[%emt 0:00:00]} 3. e3 {[%emt 0:00:08]} c5 {[%emt 0:00:45]} 4. Nc3 {[%emt 0:02:40]} Bd7 {[%emt 0:06:40]} 5. Nf3 {[%emt 0:02:57]} e6 {[%emt 0:01:22]} 6. Ne5 {[%emt 0:04:23]} Be7 {[%emt 0:02:28]} 7. Be2 {[%emt 0:02:57]} O-O {[%emt 0:04:01]} 8. O-O {[%emt 0:00:57]} Nc6 {[%emt 0:01:51]} 9. Bf3 {[%emt 0:08:39]} Rc8 {[%emt 0:09:30]} 10. Ne2 {[%emt 0:02:46]} c4 {[%emt 0:11:24]} 11. Kh1 {[%emt 0:06:01]} b5 {[%emt 0:04:47]} 12. g4 {[%emt 0:07:24]} *

[Event "NOR-ch Various 2019"]
[Site "Larvik"]
[Date "2019.07.09"]
[Round "4.20"]
[White "Opseth, Oliver"]
[Black "Kjaras, Alf Marius"]
[Result "0-1"]
[ECO "D00"]
[WhiteElo "1714"]
[BlackElo "1860"]
[Annotator "NA"]
[PlyCount "76"]
[EventDate "2019.07.06"]
[EventType "swiss"]
[EventCountry "NOR"]
[SourceTitle "playchess.com"]
[Source "ChessBase"]
[SourceQuality "1"]
[TimeControl "40/5400+30:1800+30"]

1. d4 {[%emt 0:00:00]} d5 {[%emt 0:00:00]} 2. Bf4 {[%emt 0:00:00]} Nf6 {[%emt 0:00:00]} 3. e3 {[%emt 0:00:08]} c5 {[%emt 0:00:45]} 4. Nc3 {[%emt 0:02:40]} Bd7 {[%emt 0:06:40]} 5. Nf3 {[%emt 0:02:57]} e6 {[%emt 0:01:22]} 6. Ne5 {[%emt 0:04:23]} Be7 {[%emt 0:02:28]} 7. Be2 {[%emt 0:02:57]} O-O {[%emt 0:04:01]} 8. O-O {[%emt 0:00:57]} Nc6 {[%emt 0:01:51]} 9. Bf3 {[%emt 0:08:39]} Rc8 {[%emt 0:09:30]} 10. Ne2 {[%emt 0:02:46]} c4 {[%emt 0:11:24]} 11. Kh1 {[%emt 0:06:01]} b5 {[%emt 0:04:47]} 12. g4 {[%emt 0:07:24]} a5 {[%emt 0:10:35]} 13. Rg1 {[%emt 0:05:54]} Ne8 {[%emt 0:06:39]} 14. g5 {[%emt 0:09:28]} Nd6 {[%emt 0:12:07]} 15. Qf1 {[%emt 0:03:36]} Nf5 {[%emt 0:02:30]} 16. Qh3 {[%emt 0:03:36]} Nxe5 {[%emt 0:02:39]} 17. dxe5 {[%emt 0:02:16]} Qb6 {[%emt 0:02:55]} 18. Ng3 {[%emt 0:04:36]} g6 {[%emt 0:08:10]} 19. Nxf5 {[%emt 0:07:56]} exf5 {[%emt 0:00:06]} 20. Rg3 {[%emt 0:00:46]} Rfd8 {[%emt 0:03:48]} 21. Qg2 {[%emt 0:05:11]} d4 {[%emt 0:01:20]} 22. Rd1 {[%emt 0:01:32]} d3 {[%emt 0:02:09]} 23. cxd3 {[%emt 0:01:21]} cxd3 {[%emt 0:00:14]} 24. h4 {[%emt 0:01:40]} Bc6 {[%emt 0:01:22]} 25. e4 {[%emt 0:01:12]} fxe4 {[%emt 0:00:26]} 26. Bxe4 {[%emt 0:00:03]} Bxe4 {[%emt 0:00:21]} 27. Qxe4 {[%emt 0:00:04]} Rd4 {[%emt 0:01:28]} 28. Qf3 {[%emt 0:01:33]} Rcc4 {[%emt 0:01:01]} 29. Be3 {[%emt 0:04:00]} Rxh4+ {[%emt 0:00:29]} 30. Kg2 {[%emt 0:00:17]} Qd8 {[%emt 0:01:14]} 31. b3 {[%emt 0:04:27]} Rc2 {[%emt 0:00:47]} 32. Bf4 {[%emt 0:02:37]} d2 {[%emt 0:01:14]} 33. Qe3 {[%emt 0:01:39]} Qd5+ {[%emt 0:00:34]} 34. Qf3 {[%emt 0:00:55]} Qd4 {[%emt 0:00:44]} 35. Qa8+ {[%emt 0:01:38]} Kg7 {[%emt 0:00:39]} 36. Be3 {[%emt 0:00:05]} Qxe5 {[%emt 0:00:31]} 37. Bxd2 {[%emt 0:02:14]} Rxd2 {[%emt 0:00:41]} 38. Rxd2 {[%emt 0:00:56]} Qe1 {[%emt 0:00:07]} 0-1

[Event "NOR-ch Various 2019"]
[Site "Larvik"]
[Date "2019.07.09"]
[Round "4.21"]
[White "Nordquelle, Daniel"]
[Black "Bruaset, Eivind"]
[Result "0-1"]
[ECO "C07"]
[WhiteElo "2181"]
[BlackElo "2074"]
[Annotator "NA"]
[PlyCount "98"]
[EventDate "2019.07.06"]
[EventType "swiss"]
[EventCountry "NOR"]
[SourceTitle "playchess.com"]
[Source "ChessBase"]
[SourceQuality "1"]
[TimeControl "40/5400+30:1800+30"]

1. e4 {[%emt 0:02:58]} e6 {[%emt 0:00:00]} 2. d4 {[%emt 0:00:19]} d5 {[%emt 0:00:00]} 3. Nd2 {[%emt 0:00:04]} c5 {[%emt 0:00:00]} 4. exd5 {[%emt 0:06:53]} Qxd5 {[%emt 0:00:45]} 5. Ngf3 {[%emt 0:00:08]} cxd4 {[%emt 0:00:25]} 6. Bc4 {[%emt 0:00:05]} Qd7 {[%emt 0:00:09]} 7. O-O {[%emt 0:01:40]} Nc6 {[%emt 0:00:10]} 8. Nb3 {[%emt 0:00:20]} Nf6 {[%emt 0:00:09]} 9. Bf4 {[%emt 0:08:06]} a6 {[%emt 0:04:16]} 10. a4 {[%emt 0:00:52]} b6 {[%emt 0:03:08]} 11. Ne5 {[%emt 0:03:45]} Nxe5 {[%emt 0:03:32]} 12. Bxe5 {[%emt 0:00:06]} Bb7 {[%emt 0:00:50]} 13. Nxd4 {[%emt 0:05:33]} Be7 {[%emt 0:16:47]} 14. c3 {[%emt 0:08:55]} Bd5 {[%emt 0:03:33]} 15. Bxd5 {[%emt 0:09:47]} Qxd5 {[%emt 0:00:25]} 16. Bc7 {[%emt 0:01:02]} Qb7 {[%emt 0:02:35]} 17. Be5 {[%emt 0:06:58]} O-O {[%emt 0:02:09]} 18. Re1 {[%emt 0:02:19]} Nd7 {[%emt 0:03:56]} 19. Bf4 {[%emt 0:09:23]} Bf6 {[%emt 0:00:45]} 20. Nf3 {[%emt 0:00:06]} Rfd8 {[%emt 0:01:21]} 21. Qc2 {[%emt 0:00:05]} Nc5 {[%emt 0:00:11]} 22. Be3 {[%emt 0:01:36]} Rd5 {[%emt 0:01:26]} 23. b4 {[%emt 0:14:39]} Nd3 {[%emt 0:01:45]} 24. Red1 {[%emt 0:00:37]} Rad8 {[%emt 0:00:19]} 25. Rab1 {[%emt 0:01:04]} Qc7 {[%emt 0:02:59]} 26. Nd4 {[%emt 0:06:07]} Nf4 {[%emt 0:16:49]} 27. g3 {[%emt 0:03:51]} Ng6 {[%emt 0:00:30]} 28. Qb3 {[%emt 0:00:39]} b5 {[%emt 0:05:14]} 29. axb5 {[%emt 0:01:12]} axb5 {[%emt 0:00:02]} 30. Ne2 {[%emt 0:01:07]} h6 {[%emt 0:02:25]} 31. Bc5 {[%emt 0:00:29]} Ne5 {[%emt 0:01:17]} 32. Rxd5 {[%emt 0:00:10]} Rxd5 {[%emt 0:00:59]} 33. Nd4 {[%emt 0:00:04]} Qb7 {[%emt 0:00:56]} 34. Qc2 {[%emt 0:00:53]} Nc4 {[%emt 0:06:39]} 35. Ra1 {[%emt 0:00:32]} Bxd4 {[%emt 0:01:12]} 36. Bxd4 {[%emt 0:00:25]} e5 {[%emt 0:05:46]} 37. Bc5 {[%emt 0:00:14]} g6 {[%emt 0:01:37]} 38. Ra7 {[%emt 0:00:53]} Qc6 {[%emt 0:00:18]} 39. Ra2 {[%emt 0:04:11]} Rd2 {[%emt 0:04:14]} 40. Qb1 {[%emt 0:00:52]} Qd5 {[%emt 0:02:20]} 41. Rxd2 {[%emt 0:05:37]} Nxd2 {[%emt 0:00:14]} 42. Qc2 {[%emt 0:10:01]} Nf3+ {[%emt 0:00:34]} 43. Kf1 {[%emt 0:00:04]} Qc4+ {[%emt 0:00:57]} 44. Qe2 {[%emt 0:01:45]} Nxh2+ {[%emt 0:00:56]} 45. Ke1 {[%emt 0:00:16]} Qxc3+ {[%emt 0:00:09]} 46. Kd1 {[%emt 0:00:04]} Nf3 {[%emt 0:03:03]} 47. Be3 {[%emt 0:04:55]} Nd4 {[%emt 0:01:25]} 48. Qa2 {[%emt 0:00:58]} Qd3+ {[%emt 0:00:52]} 49. Kc1 {[%emt 0:00:40]} Qf1+ {[%emt 0:01:02]} 0-1

[Event "NOR-ch Various 2019"]
[Site "Larvik"]
[Date "2019.07.09"]
[Round "4.22"]
[White "Ihlen, Sivert"]
[Black "Tunsjo, Axel"]
[Result "1/2-1/2"]
[ECO "B48"]
[WhiteElo "1580"]
[BlackElo "2039"]
[Annotator "NA"]
[PlyCount "84"]
[EventDate "2019.07.06"]
[EventType "swiss"]
[EventCountry "NOR"]
[SourceTitle "playchess.com"]
[Source "ChessBase"]
[SourceQuality "1"]
[TimeControl "40/5400+30:1800+30"]

1. e4 {[%emt 0:00:00]} c5 {[%emt 0:00:00]} 2. Nf3 {[%emt 0:00:00]} e6 {[%emt 0:00:00]} 3. d4 {[%emt 0:00:00]} cxd4 {[%emt 0:00:48]} 4. Nxd4 {[%emt 0:00:00]} Nc6 {[%emt 0:00:06]} 5. Nc3 {[%emt 0:00:00]} Qc7 {[%emt 0:00:12]} 6. Be3 {[%emt 0:00:47]} a6 {[%emt 0:01:13]} 7. Qf3 {[%emt 0:00:44]} Nf6 {[%emt 0:02:07]} 8. O-O-O {[%emt 0:02:15]} b5 {[%emt 0:01:36]} 9. e5 {[%emt 0:36:00]} Bb7 {[%emt 0:08:58]} 10. Ndxb5 {[%emt 0:04:52]} axb5 {[%emt 0:05:43]} 11. Nxb5 {[%emt 0:01:02]} Qc8 {[%emt 0:00:43]} 12. Qe2 {[%emt 0:10:37]} Nd5 {[%emt 0:05:03]} 13. Rxd5 {[%emt 0:02:47]} exd5 {[%emt 0:00:34]} 14. Bb6 {[%emt 0:03:55]} Be7 {[%emt 0:00:52]} 15. Nc7+ {[%emt 0:00:44]} Kf8 {[%emt 0:00:04]} 16. Nxa8 {[%emt 0:00:36]} Qxa8 {[%emt 0:00:06]} 17. Kb1 {[%emt 0:02:53]} Qa4 {[%emt 0:06:14]} 18. a3 {[%emt 0:09:02]} g6 {[%emt 0:09:17]} 19. Qd2 {[%emt 0:02:21]} Kg7 {[%emt 0:07:49]} 20. Qxd5 {[%emt 0:00:30]} Nb4 {[%emt 0:01:28]} 21. Qb3 {[%emt 0:01:03]} Qxb3 {[%emt 0:00:47]} 22. cxb3 {[%emt 0:00:03]} Be4+ {[%emt 0:00:09]} 23. Ka1 {[%emt 0:00:59]} Rb8 {[%emt 0:08:30]} 24. Ba5 {[%emt 0:01:54]} Nc6 {[%emt 0:01:02]} 25. Bc3 {[%emt 0:00:33]} Rxb3 {[%emt 0:08:46]} 26. e6+ {[%emt 0:01:59]} Bf6 {[%emt 0:02:09]} 27. Bxf6+ {[%emt 0:00:52]} Kxf6 {[%emt 0:00:04]} 28. Bc4 {[%emt 0:05:16]} Rb8 {[%emt 0:00:33]} 29. f3 {[%emt 0:01:45]} Bf5 {[%emt 0:01:34]} 30. exf7 {[%emt 0:00:55]} Be6 {[%emt 0:00:37]} 31. Bxe6 {[%emt 0:00:17]} Kxe6 {[%emt 0:00:50]} 32. b4 {[%emt 0:02:35]} Kxf7 {[%emt 0:00:08]} 33. Kb2 {[%emt 0:00:40]} Re8 {[%emt 0:01:49]} 34. Rd1 {[%emt 0:01:01]} Re2+ {[%emt 0:03:43]} 35. Kc3 {[%emt 0:02:08]} Ke6 {[%emt 0:01:40]} 36. Rd2 {[%emt 0:00:55]} Rxd2 {[%emt 0:04:15]} 37. Kxd2 {[%emt 0:00:03]} Kd5 {[%emt 0:00:12]} 38. Kc3 {[%emt 0:00:57]} Nd4 {[%emt 0:00:43]} 39. Kd3 {[%emt 0:03:18]} g5 {[%emt 0:03:43]} 40. a4 {[%emt 0:01:00]} Nc6 {[%emt 0:01:14]} 41. Kc3 {[%emt 0:03:04]} Nd4 {[%emt 0:14:59]} 42. Kd3 {[%emt 0:12:56]} Nc6 {[%emt 0:23:26]} 1/2-1/2

[Event "NOR-ch Various 2019"]
[Site "Larvik"]
[Date "2019.07.09"]
[Round "4.22"]
[White "Borseth, Sivert"]
[Black "Tunsjo, Axel"]
[Result "*"]
[ECO "B48"]
[WhiteElo "1371"]
[BlackElo "2039"]
[Annotator "NA"]
[PlyCount "67"]
[EventDate "2019.07.06"]
[EventType "swiss"]
[EventCountry "NOR"]
[SourceTitle "playchess.com"]
[Source "ChessBase"]
[SourceQuality "1"]
[TimeControl "40/5400+30:1800+30"]

1. e4 {[%emt 0:00:00]} c5 {[%emt 0:00:00]} 2. Nf3 {[%emt 0:00:00]} e6 {[%emt 0:00:00]} 3. d4 {[%emt 0:00:00]} cxd4 {[%emt 0:00:48]} 4. Nxd4 {[%emt 0:00:00]} Nc6 {[%emt 0:00:06]} 5. Nc3 {[%emt 0:00:00]} Qc7 {[%emt 0:00:12]} 6. Be3 {[%emt 0:00:47]} a6 {[%emt 0:01:13]} 7. Qf3 {[%emt 0:00:44]} Nf6 {[%emt 0:02:07]} 8. O-O-O {[%emt 0:02:15]} b5 {[%emt 0:01:36]} 9. e5 {[%emt 0:36:00]} Bb7 {[%emt 0:08:58]} 10. Ndxb5 {[%emt 0:04:52]} axb5 {[%emt 0:05:43]} 11. Nxb5 {[%emt 0:01:02]} Qc8 {[%emt 0:00:43]} 12. Qe2 {[%emt 0:10:37]} Nd5 {[%emt 0:05:03]} 13. Rxd5 {[%emt 0:02:47]} exd5 {[%emt 0:00:34]} 14. Bb6 {[%emt 0:03:55]} Be7 {[%emt 0:00:52]} 15. Nc7+ {[%emt 0:00:44]} Kf8 {[%emt 0:00:04]} 16. Nxa8 {[%emt 0:00:36]} Qxa8 {[%emt 0:00:06]} 17. Kb1 {[%emt 0:02:53]} Qa4 {[%emt 0:06:14]} 18. a3 {[%emt 0:09:02]} g6 {[%emt 0:09:17]} 19. Qd2 {[%emt 0:02:21]} Kg7 {[%emt 0:07:49]} 20. Qxd5 {[%emt 0:00:30]} Nb4 {[%emt 0:01:28]} 21. Qb3 {[%emt 0:01:03]} Qxb3 {[%emt 0:00:47]} 22. cxb3 {[%emt 0:00:03]} Be4+ {[%emt 0:00:09]} 23. Ka1 {[%emt 0:00:59]} Rb8 {[%emt 0:08:30]} 24. Ba5 {[%emt 0:01:54]} Nc6 {[%emt 0:01:02]} 25. Bc3 {[%emt 0:00:33]} Rxb3 {[%emt 0:08:46]} 26. e6+ {[%emt 0:01:59]} Bf6 {[%emt 0:02:09]} 27. Bxf6+ {[%emt 0:00:52]} Kxf6 {[%emt 0:00:04]} 28. Bc4 {[%emt 0:05:16]} Rb8 {[%emt 0:00:33]} 29. f3 {[%emt 0:01:45]} Bf5 {[%emt 0:01:34]} 30. exf7 {[%emt 0:00:55]} Be6 {[%emt 0:00:37]} 31. Bxe6 {[%emt 0:00:17]} Kxe6 {[%emt 0:00:50]} 32. b4 {[%emt 0:02:35]} Kxf7 {[%emt 0:00:08]} 33. Kb2 {[%emt 0:00:40]} Re8 {[%emt 0:01:49]} 34. Rd1 {[%emt 0:01:01]} *

[Event "NOR-ch Various 2019"]
[Site "Larvik"]
[Date "2019.07.09"]
[Round "4.23"]
[White "Evenshaug, Amadeus Hestvik"]
[Black "Nordquelle, Amelia"]
[Result "1-0"]
[ECO "C56"]
[WhiteElo "1769"]
[BlackElo "1648"]
[Annotator "NA"]
[PlyCount "67"]
[EventDate "2019.07.06"]
[EventType "swiss"]
[EventCountry "NOR"]
[SourceTitle "playchess.com"]
[Source "ChessBase"]
[SourceQuality "1"]
[TimeControl "40/5400+30:1800+30"]

1. e4 {[%emt 0:00:00]} e5 {[%emt 0:04:10]} 2. Nf3 {[%emt 0:00:00]} Nc6 {[%emt 0:00:51]} 3. d4 {[%emt 0:00:26]} exd4 {[%emt 0:01:27]} 4. Bc4 {[%emt 0:00:50]} Nf6 {[%emt 0:01:26]} 5. O-O {[%emt 0:01:15]} Bc5 {[%emt 0:02:26]} 6. e5 {[%emt 0:02:46]} d5 {[%emt 0:00:45]} 7. Bb5 {[%emt 0:00:25]} Ng8 {[%emt 0:03:03]} 8. Nxd4 {[%emt 0:00:16]} Nge7 {[%emt 0:01:25]} 9. Bg5 {[%emt 0:08:55]} Bxd4 {[%emt 0:01:59]} 10. Bxc6+ {[%emt 0:00:20]} bxc6 {[%emt 0:00:16]} 11. Qxd4 {[%emt 0:00:05]} h6 {[%emt 0:06:47]} 12. Bd2 {[%emt 0:03:45]} O-O {[%emt 0:00:00]} 13. Re1 {[%emt 0:03:06]} Nf5 {[%emt 0:00:15]} 14. Qc5 {[%emt 0:02:05]} Bd7 {[%emt 0:05:36]} 15. Bc3 {[%emt 0:03:48]} Qg5 {[%emt 0:02:04]} 16. Bd2 {[%emt 0:03:21]} Qg6 {[%emt 0:01:23]} 17. Bf4 {[%emt 0:02:53]} Rfb8 {[%emt 0:11:29]} 18. b3 {[%emt 0:02:15]} Rb5 {[%emt 0:00:25]} 19. Qc3 {[%emt 0:03:06]} c5 {[%emt 0:02:58]} 20. a4 {[%emt 0:01:14]} Rb4 {[%emt 0:02:40]} 21. Bg3 {[%emt 0:01:24]} Rg4 {[%emt 0:05:57]} 22. Qxc5 {[%emt 0:02:21]} h5 {[%emt 0:01:45]} 23. Qxc7 {[%emt 0:06:59]} Bc6 {[%emt 0:00:47]} 24. e6 {[%emt 0:00:09]} Nd4 {[%emt 0:04:55]} 25. c3 {[%emt 0:05:20]} Ne2+ {[%emt 0:10:22]} 26. Rxe2 {[%emt 0:00:57]} Be8 {[%emt 0:00:35]} 27. e7 {[%emt 0:00:57]} h4 {[%emt 0:01:18]} 28. Qd8 {[%emt 0:00:56]} Qc6 {[%emt 0:00:24]} 29. h3 {[%emt 0:09:54]} Rg6 {[%emt 0:02:55]} 30. Bxh4 {[%emt 0:02:34]} f5 {[%emt 0:00:22]} 31. Rd2 {[%emt 0:01:53]} Rd6 {[%emt 0:01:29]} 32. Qa5 {[%emt 0:00:40]} a6 {[%emt 0:02:09]} 33. Bg3 {[%emt 0:01:12]} Rg6 {[%emt 0:00:27]} 34. Qxd5+ {[%emt 0:00:20]} 1-0

[Event "NOR-ch Various 2019"]
[Site "Larvik"]
[Date "2019.07.09"]
[Round "4.24"]
[White "Helliesen, Lykke-Merlot"]
[Black "Olsen, William Alexander"]
[Result "1-0"]
[ECO "A47"]
[WhiteElo "1505"]
[BlackElo "1764"]
[Annotator "NA"]
[PlyCount "35"]
[EventDate "2019.07.06"]
[EventType "swiss"]
[EventCountry "NOR"]
[SourceTitle "playchess.com"]
[Source "ChessBase"]
[SourceQuality "1"]
[TimeControl "40/5400+30:1800+30"]

1. d4 {[%emt 0:00:00]} Nf6 {[%emt 0:00:00]} 2. Bf4 {[%emt 0:00:00]} e6 {[%emt 0:00:00]} 3. e3 {[%emt 0:01:40]} b6 {[%emt 0:00:00]} 4. Nf3 {[%emt 0:02:52]} Be7 {[%emt 0:00:29]} 5. Nbd2 {[%emt 0:08:11]} Bb7 {[%emt 0:03:37]} 6. c4 {[%emt 0:08:30]} O-O {[%emt 0:00:39]} 7. Bd3 {[%emt 0:00:50]} c5 {[%emt 0:01:36]} 8. b3 {[%emt 0:11:08]} Nc6 {[%emt 0:03:30]} 9. h4 {[%emt 0:18:45]} d5 {[%emt 0:02:21]} 10. a3 {[%emt 0:08:38]} dxc4 {[%emt 0:04:51]} 11. Nxc4 {[%emt 0:01:07]} cxd4 {[%emt 0:00:08]} 12. exd4 {[%emt 0:00:55]} Nd5 {[%emt 0:00:43]} 13. Bd2 {[%emt 0:14:21]} Bf6 {[%emt 0:00:50]} 14. Bxh7+ {[%emt 0:09:17]} Kxh7 {[%emt 0:01:35]} 15. Ng5+ {[%emt 0:00:20]} Kg8 {[%emt 0:00:21]} 16. Qh5 {[%emt 0:00:45]} Bxg5 {[%emt 0:00:34]} 17. hxg5 {[%emt 0:00:24]} f6 {[%emt 0:00:17]} 18. g6 {[%emt 0:00:13]} 1-0

[Event "NOR-ch Various 2019"]
[Site "Larvik"]
[Date "2019.07.09"]
[Round "4.24"]
[White "Nordlov, Jorgen"]
[Black "Skretteberg, Martin"]
[Result "*"]
[ECO "A47"]
[WhiteElo "1263"]
[BlackElo "1397"]
[Annotator "NA"]
[PlyCount "24"]
[EventDate "2019.07.06"]
[EventType "swiss"]
[EventCountry "NOR"]
[SourceTitle "playchess.com"]
[Source "ChessBase"]
[SourceQuality "1"]
[TimeControl "40/5400+30:1800+30"]

1. d4 {[%emt 0:00:00]} Nf6 {[%emt 0:00:00]} 2. Bf4 {[%emt 0:00:00]} e6 {[%emt 0:00:00]} 3. e3 {[%emt 0:01:40]} b6 {[%emt 0:00:00]} 4. Nf3 {[%emt 0:02:52]} Be7 {[%emt 0:00:29]} 5. Nbd2 {[%emt 0:08:11]} Bb7 {[%emt 0:03:37]} 6. c4 {[%emt 0:08:30]} O-O {[%emt 0:00:39]} 7. Bd3 {[%emt 0:00:50]} c5 {[%emt 0:01:36]} 8. b3 {[%emt 0:11:08]} Nc6 {[%emt 0:03:30]} 9. h4 {[%emt 0:18:45]} d5 {[%emt 0:02:21]} 10. a3 {[%emt 0:08:38]} dxc4 {[%emt 0:04:51]} 11. Nxc4 {[%emt 0:01:07]} cxd4 {[%emt 0:00:08]} 12. exd4 {[%emt 0:00:55]} Nd5 {[%emt 0:00:43]} *

[Event "NOR-ch Various 2019"]
[Site "Larvik"]
[Date "2019.07.09"]
[Round "4.25"]
[White "Brattgjerd, Isak Vinh"]
[Black "Haug, Havard"]
[Result "1-0"]
[ECO "B24"]
[WhiteElo "1571"]
[BlackElo "1483"]
[Annotator "NA"]
[PlyCount "149"]
[EventDate "2019.07.06"]
[EventType "swiss"]
[EventCountry "NOR"]
[SourceTitle "playchess.com"]
[Source "ChessBase"]
[SourceQuality "1"]
[TimeControl "40/5400+30:1800+30"]

1. e4 {[%emt 0:00:00]} c5 {[%emt 0:00:00]} 2. Nc3 {[%emt 0:00:31]} Nc6 {[%emt 0:00:05]} 3. g3 {[%emt 0:00:19]} d6 {[%emt 0:00:14]} 4. Bg2 {[%emt 0:00:22]} e6 {[%emt 0:00:21]} 5. Nge2 {[%emt 0:00:52]} Nf6 {[%emt 0:00:26]} 6. d3 {[%emt 0:02:09]} Be7 {[%emt 0:00:27]} 7. O-O {[%emt 0:04:37]} O-O {[%emt 0:01:12]} 8. f4 {[%emt 0:00:47]} Re8 {[%emt 0:01:07]} 9. b3 {[%emt 0:04:21]} Bd7 {[%emt 0:03:17]} 10. Bb2 {[%emt 0:00:23]} Ng4 {[%emt 0:02:04]} 11. Qd2 {[%emt 0:04:43]} c4 {[%emt 0:02:00]} 12. Bf3 {[%emt 0:04:44]} cxd3 {[%emt 0:01:23]} 13. cxd3 {[%emt 0:00:41]} Nf6 {[%emt 0:00:35]} 14. Rac1 {[%emt 0:00:27]} e5 {[%emt 0:01:34]} 15. Nd5 {[%emt 0:03:01]} Bf8 {[%emt 0:07:14]} 16. Nec3 {[%emt 0:04:16]} Be6 {[%emt 0:04:23]} 17. Ne3 {[%emt 0:08:58]} Nd4 {[%emt 0:01:15]} 18. Bg2 {[%emt 0:01:22]} Bxb3 {[%emt 0:00:48]} 19. axb3 {[%emt 0:02:01]} Nxb3 {[%emt 0:02:49]} 20. Qf2 {[%emt 0:00:40]} Nxc1 {[%emt 0:00:11]} 21. Rxc1 {[%emt 0:00:03]} a5 {[%emt 0:00:35]} 22. Ra1 {[%emt 0:01:44]} Be7 {[%emt 0:01:23]} 23. Nc4 {[%emt 0:02:03]} exf4 {[%emt 0:02:09]} 24. gxf4 {[%emt 0:01:05]} Ng4 {[%emt 0:07:31]} 25. Qg3 {[%emt 0:02:53]} h5 {[%emt 0:01:47]} 26. h3 {[%emt 0:03:31]} Nh6 {[%emt 0:04:08]} 27. Nd5 {[%emt 0:02:11]} g6 {[%emt 0:02:55]} 28. Nxe7+ {[%emt 0:05:49]} Qxe7 {[%emt 0:01:59]} 29. Nb6 {[%emt 0:06:38]} Red8 {[%emt 0:04:09]} 30. Nxa8 {[%emt 0:00:00]} Rxa8 {[%emt 0:00:15]} 31. Qg5 {[%emt 0:00:00]} Qf8 {[%emt 0:00:24]} 32. f5 {[%emt 0:00:00]} Kh7 {[%emt 0:00:45]} 33. fxg6+ {[%emt 0:00:00]} fxg6 {[%emt 0:00:10]} 34. Rxa5 {[%emt 0:00:00]} Rxa5 {[%emt 0:00:16]} 35. Qxa5 {[%emt 0:00:00]} Qc8 {[%emt 0:02:35]} 36. Qb4 {[%emt 0:00:07]} Nf7 {[%emt 0:02:11]} 37. Qb3 {[%emt 0:01:03]} Ne5 {[%emt 0:03:19]} 38. Qd5 {[%emt 0:03:27]} Qc2 {[%emt 0:01:22]} 39. Bxe5 {[%emt 0:02:26]} dxe5 {[%emt 0:01:23]} 40. Qxe5 {[%emt 0:01:10]} Qxd3 {[%emt 0:00:21]} 41. Qc7+ {[%emt 0:30:13]} Kh6 {[%emt 0:30:23]} 42. e5 {[%emt 0:09:26]} Qg3 {[%emt 0:05:20]} 43. Qc5 {[%emt 0:01:48]} Qe1+ {[%emt 0:01:02]} 44. Kh2 {[%emt 0:07:34]} h4 {[%emt 0:00:38]} 45. Qf8+ {[%emt 0:00:30]} Kh7 {[%emt 0:00:15]} 46. Qf7+ {[%emt 0:01:19]} Kh6 {[%emt 0:00:15]} 47. Qf4+ {[%emt 0:00:19]} Kh7 {[%emt 0:00:23]} 48. Bxb7 {[%emt 0:00:38]} Qe2+ {[%emt 0:00:53]} 49. Bg2 {[%emt 0:00:09]} Qe1 {[%emt 0:00:12]} 50. Qg5 {[%emt 0:00:40]} Kg7 {[%emt 0:01:14]} 51. Qf4 {[%emt 0:00:47]} Kh7 {[%emt 0:00:26]} 52. Qe4 {[%emt 0:00:14]} Qg3+ {[%emt 0:01:05]} 53. Kh1 {[%emt 0:00:07]} Qg5 {[%emt 0:01:31]} 54. Qd4 {[%emt 0:06:59]} Qg3 {[%emt 0:02:40]} 55. Qd7+ {[%emt 0:02:06]} Kh6 {[%emt 0:00:16]} 56. Qd2+ {[%emt 0:01:20]} Kg7 {[%emt 0:00:49]} 57. Qe2 {[%emt 0:00:20]} Qg5 {[%emt 0:03:45]} 58. Qb5 {[%emt 0:00:00]} Qc1+ {[%emt 0:00:00]} 59. Qf1 {[%emt 0:00:00]} Qe3 {[%emt 0:00:00]} 60. Qf6+ {[%emt 0:00:00]} Kg8 {[%emt 0:00:00]} 61. Qxg6+ {[%emt 0:00:00]} Kh8 {[%emt 0:00:00]} 62. Qf6+ {[%emt 0:00:00]} Kg8 {[%emt 0:00:00]} 63. Bd5+ {[%emt 0:00:00]} Kh7 {[%emt 0:00:00]} 64. Qxh4+ {[%emt 0:00:00]} Kg7 {[%emt 0:00:00]} 65. Qg4+ {[%emt 0:00:00]} Kh6 {[%emt 0:00:00]} 66. Qh4+ {[%emt 0:00:00]} Kg7 {[%emt 0:00:00]} 67. Qf6+ {[%emt 0:00:00]} Kh7 {[%emt 0:00:00]} 68. Qf5+ {[%emt 0:00:00]} Kh6 {[%emt 0:00:00]} 69. Bg2 {[%emt 0:00:00]} Qc1+ {[%emt 0:00:00]} 70. Kh2 {[%emt 0:00:00]} Qc7 {[%emt 0:00:00]} 71. Qf6+ {[%emt 0:00:00]} Kh7 {[%emt 0:01:04]} 72. Be4+ {[%emt 0:00:12]} Kg8 {[%emt 0:00:00]} 73. Bd5+ {[%emt 0:00:00]} Kh7 {[%emt 0:00:00]} 74. Qf7+ {[%emt 0:00:00]} Kh8 {[%emt 0:00:00]} 75. Qg8# {[%emt 0:00:46]} 1-0